bitfinex-derivatives/quotes_SOLF0:USTF0_20250409
["timestamp","ask_amount","ask_price","bid_price","bid_amount"]
[1744167543679,2.2278,103.69,103.66,9.6551]
[1744167543976,2.2856,103.7,103.63,67.68962639]
[1744167544179,2.2856,103.7,103.64,2.2379]
[1744167544482,0.07331675,103.68,103.65,0.06520442]
[1744167544975,0.07331675,103.68,103.65,9.72100442]
[1744167545176,9.72691675,103.68,103.65,0.06520442]
[1744167545572,0.07331675,103.68,103.65,0.06520442]
[1744167546274,9.72741675,103.68,103.65,0.06520442]
[1744167546578,0.07331675,103.68,103.65,0.06520442]
[1744167547979,9.6586,103.63,103.6,510.18]
[1744167548170,20.12962639,103.67,103.6,510.18]
[1744167548370,69.90662639,103.69,103.6,510.18]
[1744167548675,20.12962639,103.67,103.59,2.3266]
[1744167548872,20.12962639,103.65,103.57,2.2218]
[1744167549074,9.6596,103.62,103.58,9.6623]
[1744167549278,9.73186771,103.62,103.6,0.06631811]
[1744167549781,0.07226771,103.62,103.6,0.06631811]
[1744167550170,9.73216771,103.62,103.6,0.06631811]
[1744167550371,0.07226771,103.62,103.6,0.06631811]
[1744167550880,9.66,103.61,103.6,0.06631811]
[1744167552277,9.73186771,103.62,103.6,0.06631811]
[1744167552483,0.07226771,103.62,103.6,0.06631811]
[1744167552783,9.66,103.61,103.6,0.06631811]
[1744167554782,0.07226771,103.62,103.6,0.06631811]
[1744167555173,0.07226771,103.62,103.6,9.72661811]
[1744167555380,0.07226771,103.62,103.6,0.06631811]
[1744167555886,9.73196771,103.62,103.6,0.06631811]
[1744167559398,9.66,103.61,103.6,0.06631811]
[1744167559602,0.07226771,103.62,103.55,67.66962639]
[1744167559791,47.54,103.63,103.55,67.66962639]
[1744167559996,4.8088,103.62,103.55,67.66962639]
[1744167560700,9.6633,103.58,103.55,77.33472639]
[1744167561099,0.06166802,103.58,103.55,57.2051]
[1744167561403,0.06166802,103.58,103.55,47.54]
[1744167561903,9.72506802,103.58,103.55,47.54]
[1744167562105,0.06166802,103.58,103.55,47.54]
[1744167562497,0.06166802,103.58,103.53,530.08962639]
[1744167563007,9.72526802,103.58,103.54,9.666]
[1744167563209,0.06166802,103.58,103.54,9.666]
[1744167563403,0.06166802,103.58,103.53,530.08962639]
[1744167563596,9.6654,103.56,103.53,9.6668]
[1744167563998,9.73021291,103.56,103.53,9.6668]
[1744167565003,9.6657,103.55,103.52,9.668]
[1744167565206,9.6657,103.55,103.51,22.38872639]
[1744167565499,0.06481291,103.56,103.51,2.2591]
[1744167565810,2.40541291,103.56,103.49,67.68962639]
[1744167566007,4.6873,103.56,103.48,20.12962639]
[1744167566307,20.19516821,103.54,103.45,22.36212639]
[1744167566507,20.19516821,103.54,103.45,69.92212639]
[1744167566508,9.6699,103.51,103.45,69.92212639]
[1744167566909,0.0655923,103.49,103.45,69.92212639]
[1744167567116,0.0655923,103.49,103.47,9.6725]
[1744167567307,0.0655923,103.49,103.45,69.92212639]
[1744167567503,0.0655923,103.49,103.47,9.6727]
[1744167568209,0.0655923,103.49,103.46,9.6736]
[1744167568508,0.0655923,103.49,103.45,67.68962639]
[1744167568712,9.7372923,103.49,103.45,77.36412639]
[1744167568910,0.0655923,103.49,103.45,67.68962639]
[1744167569410,0.0655923,103.49,103.48,9.6722]
[1744167570607,0.0655923,103.49,103.45,67.68962639]
[1744167572105,0.0655923,103.49,103.48,9.6722]
[1744167573415,9.23e-05,103.49,103.48,57.2122]
[1744167574913,9.23e-05,103.49,103.48,61.6285]
[1744167575514,24.81692639,103.56,103.48,51.9563]
[1744167575515,4.6873,103.56,103.48,51.9563]
[1744167576015,4.6873,103.56,103.51,9.6693]
[1744167576810,9.73200019,103.55,103.52,0.06296346]
[1744167577411,47.54,103.54,103.44,510.26]
[1744167577617,70.10312639,103.54,103.45,49.8732]
[1744167578116,9.6689,103.52,103.45,49.8732]
[1744167578515,0.06619935,103.5,103.46,20.12962639]
[1744167578913,0.06619935,103.5,103.47,2.1983]
[1744167579115,0.06619935,103.5,103.49,9.6712]
[1744167581115,0.06619935,103.5,103.48,57.2117]
[1744167581413,0.06619935,103.5,103.48,47.54]
[1744167581615,0.06619935,103.5,103.47,9.6728]
[1744167582019,9.73689935,103.5,103.47,9.6728]
[1744167582816,9.73689935,103.5,103.46,9.6737]
[1744167583816,9.73689935,103.5,103.47,9.6731]
[1744167584018,0.06619935,103.5,103.47,9.6731]
[1744167584216,0.06619935,103.5,103.48,47.56]
[1744167584719,0.06619935,103.5,103.49,9.6712]
[1744167586022,2.4335,103.54,103.48,47.56]
[1744167586213,70.02432639,103.59,103.51,20.12962639]
[1744167586412,72.27222639,103.59,103.52,47.56]
[1744167586613,9.6632,103.58,103.52,47.56]
[1744167586914,72.27222639,103.59,103.54,9.6661]
[1744167587114,9.72577206,103.58,103.55,0.07283008]
[1744167587814,9.72577206,103.58,103.55,9.73823008]
[1744167588015,9.72577206,103.58,103.55,0.07283008]
[1744167588219,9.664,103.57,103.55,0.07283008]
[1744167588717,0.06237206,103.58,103.55,0.07283008]
[1744167589017,9.6638,103.57,103.55,0.07283008]
[1744167589316,9.6647,103.56,103.55,0.07283008]
[1744167589814,0.06237206,103.58,103.55,9.73773008]
[1744167590022,0.06237206,103.58,103.55,0.07283008]
[1744167590521,9.6644,103.57,103.55,0.07283008]
[1744167591024,9.6647,103.56,103.55,0.07283008]
[1744167591525,9.6642,103.57,103.55,0.07283008]
[1744167592721,9.72557206,103.58,103.55,9.73833008]
[1744167592921,0.06237206,103.58,103.55,0.07283008]
[1744167593414,0.06237206,103.58,103.56,9.6642]
[1744167593619,0.06237206,103.58,103.55,47.61283008]
[1744167593926,0.06237206,103.58,103.57,9.6638]
[1744167597324,0.06237206,103.58,103.56,2.2706]
[1744167598331,0.06237206,103.58,103.57,9.6638]
[1744167600528,7.206e-05,103.58,103.57,9.6638]
[1744167600831,22.35172639,103.64,103.55,2.33383008]
[1744167601023,22.35172639,103.64,103.55,2.261]
[1744167601224,22.35172639,103.64,103.56,47.5]
[1744167601426,9.6612,103.6,103.56,47.5]
[1744167601635,22.35172639,103.64,103.58,9.6624]
[1744167601829,0.06085909,103.59,103.58,9.6624]
[1744167602023,22.35172639,103.64,103.58,9.6624]
[1744167602223,0.0664267,103.6,103.57,9.6633]
[1744167602621,0.0664267,103.6,103.57,9.73090131]
[1744167603126,0.0664267,103.6,103.57,0.06760131]
[1744167603332,9.662,103.59,103.57,0.06760131]
[1744167603834,9.7278267,103.6,103.57,0.06760131]
[1744167604535,9.7278267,103.6,103.57,9.73130131]
[1744167605336,0.0664267,103.6,103.57,0.06760131]
[1744167605632,24.84265309,103.6,103.57,0.06760131]
[1744167605833,9.6628,103.58,103.57,0.06760131]
[1744167606034,2.4076,103.59,103.52,67.60962639]
[1744167606534,4.6466,103.6,103.54,20.12962639]
[1744167606732,67.60962639,103.64,103.56,20.12962639]
[1744167606931,9.6603,103.61,103.56,67.60962639]
[1744167607138,0.06754241,103.6,103.57,0.06690372]
[1744167607434,0.06754241,103.6,103.57,9.73000372]
[1744167607636,0.06754241,103.6,103.57,0.06690372]
[1744167608436,0.06754241,103.6,103.58,9.6622]
[1744167609334,9.72884241,103.6,103.57,9.73030372]
[1744167610035,9.6624,103.59,103.57,0.06690372]
[1744167610231,0.06754241,103.6,103.57,0.06690372]
[1744167610737,9.6628,103.58,103.57,0.06690372]
[1744167610938,47.48,103.58,103.51,515.1221]
[1744167611233,47.48,103.58,103.51,4.8021]
[1744167611437,47.48,103.58,103.52,20.12962639]
[1744167611835,47.48,103.58,103.51,7.0855]
[1744167612033,0.06517928,103.56,103.51,2.4335]
[1744167613037,0.06517928,103.56,103.53,9.6667]
[1744167613237,0.06517928,103.56,103.52,20.12962639]
[1744167613730,9.72987928,103.56,103.53,9.6673]
[1744167613931,0.06517928,103.56,103.51,2.4335]
[1744167614339,0.06517928,103.56,103.52,20.12962639]
[1744167614842,0.06517928,103.56,103.53,47.48]
[1744167615138,0.06517928,103.56,103.54,9.6661]
[1744167616438,0.06517928,103.56,103.53,57.1471]
[1744167616941,0.06517928,103.56,103.54,9.6665]
[1744167617142,0.06517928,103.56,103.53,47.48]
[1744167617738,0.06517928,103.56,103.53,57.147]
[1744167618043,0.06517928,103.56,103.49,20.12962639]
[1744167618238,2.4119,103.56,103.49,20.12962639]
[1744167618438,0.06796405,103.54,103.49,20.12962639]
[1744167618740,0.06796405,103.54,103.5,47.48]
[1744167618938,9.6682,103.53,103.5,47.48]
[1744167619138,9.6682,103.53,103.49,29.80042639]
[1744167619342,0.06796405,103.54,103.49,20.12962639]
[1744167619639,0.06796405,103.54,103.5,9.6697]
[1744167619840,47.54796405,103.54,103.47,67.60962639]
[1744167620143,9.6718,103.49,103.45,29.80402639]
[1744167620735,0.0690698,103.48,103.45,29.80402639]
[1744167620932,0.0690698,103.48,103.46,9.6737]
[1744167622446,2.3746,103.54,103.47,67.62962639]
[1744167622647,47.5,103.6,103.5,20.12962639]
[1744167622944,4.5924,103.6,103.54,20.12962639]
[1744167623148,38.97691394,103.61,103.55,47.5]
[1744167623447,210.3946557,103.63,103.55,49.7183]
[1744167623739,0.07066066,103.59,103.57,0.0714237]
[1744167623939,9.73286066,103.59,103.57,0.0714237]
[1744167624139,0.07066066,103.59,103.57,0.0714237]
[1744167625042,9.73066066,103.59,103.51,2.4196]
[1744167625347,32.23946841,103.59,103.51,2.4196]
[1744167625549,9.6643,103.57,103.53,9.667]
[1744167625846,9.6643,103.57,103.51,2.4196]
[1744167626149,0.07127335,103.55,103.52,9.6679]
[1744167626447,0.07127335,103.55,103.51,2.4196]
[1744167626647,0.07127335,103.55,103.52,9.6677]
[1744167626848,0.07127335,103.55,103.51,2.4196]
[1744167627444,0.07127335,103.55,103.52,47.5]
[1744167627940,51.9839,103.64,103.53,32.23946841]
[1744167628142,9.6596,103.62,103.58,9.6622]
[1744167628446,51.9839,103.64,103.56,47.5]
[1744167628849,9.6605,103.61,103.57,9.6632]
[1744167629052,0.06673851,103.61,103.59,0.06992856]
[1744167629348,47.56673851,103.61,103.53,52.3124]
[1744167629548,9.6628,103.58,103.54,9.6661]
[1744167629848,47.5,103.61,103.53,52.3124]
[1744167630049,47.5,103.61,103.53,47.5]
[1744167630450,0.06882826,103.58,103.53,47.5]
[1744167631152,0.06882826,103.58,103.55,9.6655]
[1744167631650,9.73182826,103.58,103.54,57.1261]
[1744167631851,9.663,103.58,103.54,57.1261]
[1744167632149,0.07183259,103.57,103.54,57.1261]
[1744167632349,0.07183259,103.57,103.54,47.46]
[1744167632549,0.07183259,103.57,103.55,9.6656]
[1744167633655,0.07183259,103.57,103.54,57.1261]
[1744167634054,0.07183259,103.57,103.54,47.46]
[1744167634554,2.3049,103.63,103.54,47.46]
[1744167634742,11.9639,103.63,103.55,4.5359]
[1744167635147,2.3049,103.63,103.55,4.5359]
[1744167635346,47.44,103.67,103.56,94.23946841]
[1744167635553,52.124,103.67,103.57,47.44]
[1744167635756,0.06263738,103.63,103.6,0.06567982]
[1744167636055,0.06263738,103.63,103.6,47.44]
[1744167636252,0.06263738,103.63,103.6,47.5017095]
[1744167636556,0.06263738,103.63,103.6,0.0617095]
[1744167636947,9.72113738,103.63,103.6,0.0617095]
[1744167637252,0.06263738,103.63,103.6,0.0617095]
[1744167637551,9.72083738,103.63,103.6,0.0617095]
[1744167638250,0.06263738,103.63,103.6,0.0617095]
[1744167638747,0.06263738,103.63,103.6,9.7221095]
[1744167639954,0.06263738,103.63,103.6,47.5017095]
[1744167640456,9.72093738,103.63,103.6,57.1622095]
[1744167640956,0.06263738,103.63,103.6,57.1622095]
[1744167641457,0.06263738,103.63,103.61,9.6599]
[1744167642457,0.06263738,103.63,103.62,9.6591]
[1744167642952,14.0949,103.7,103.67,9.6544]
[1744167643155,47.44,103.73,103.67,9.6544]
[1744167643458,47.44,103.73,103.67,9.6539]
[1744167643459,9.6516,103.71,103.67,9.6539]
[1744167643658,47.44,103.73,103.67,9.6539]
[1744167643865,38.82410228,103.75,103.67,47.44]
[1744167644069,0.06291972,103.71,103.69,0.06373194]
[1744167644562,0.06291972,103.71,103.69,9.71583194]
[1744167644765,0.06291972,103.71,103.69,0.06373194]
[1744167645770,0.06291972,103.71,103.69,9.71583194]
[1744167646568,0.06291972,103.71,103.69,0.06373194]
[1744167647663,0.06291972,103.71,103.69,9.71613194]
[1744167648270,0.06291972,103.71,103.69,0.06373194]
[1744167649666,11.9533,103.77,103.7,79.65946841]
[1744167649861,2.2378,103.79,103.7,84.36796841]
[1744167650067,2.2378,103.79,103.72,32.23946841]
[1744167650366,2.2378,103.79,103.74,9.6473]
[1744167650670,0.06848018,103.78,103.75,0.06752503]
[1744167651358,79.63946841,103.77,103.68,2.2547]
[1744167651568,32.23946841,103.72,103.63,2.3525]
[1744167651761,4.5912,103.71,103.63,4.7835]
[1744167651961,6.9821,103.71,103.63,2.431]
[1744167652165,32.23946841,103.7,103.59,589.35946841]
[1744167652365,47.4,103.69,103.59,589.35946841]
[1744167652567,0.07342509,103.66,103.63,9.72163377]
[1744167653270,0.07342509,103.66,103.64,9.6571]
[1744167653667,0.07342509,103.66,103.63,0.06363377]
[1744167654276,0.07342509,103.66,103.63,9.72123377]
[1744167655075,0.07342509,103.66,103.64,9.6565]
[1744167655273,0.07342509,103.66,103.63,4.87953377]
[1744167655769,0.07342509,103.66,103.63,14.53693377]
[1744167655975,0.07342509,103.66,103.63,9.72103377]
[1744167657068,0.07342509,103.66,103.64,9.6572]
[1744167657566,0.07342509,103.66,103.63,0.06363377]
[1744167658569,9.6521,103.7,103.66,9.6546]
[1744167658761,6.9821,103.71,103.65,47.4]
[1744167659573,32.23946841,103.7,103.62,2.3508]
[1744167659873,47.46069956,103.69,103.67,0.06324742]
[1744167660271,0.06069956,103.69,103.67,0.06324742]
[1744167660667,9.71379956,103.69,103.67,0.06324742]
[1744167662077,0.06069956,103.69,103.67,0.06324742]
[1744167662368,47.44069956,103.69,103.62,2.3508]
[1744167662572,47.38,103.69,103.62,2.3508]
[1744167663073,9.6552,103.67,103.63,9.6577]
[1744167663476,0.06544079,103.66,103.64,0.0722897]
[1744167663866,0.06544079,103.66,103.64,9.7289897]
[1744167664175,0.06544079,103.66,103.64,0.0722897]
[1744167664878,0.06544079,103.66,103.65,9.6563]
[1744167665378,14.2423,103.71,103.67,9.654]
[1744167665568,4.5912,103.71,103.66,47.38]
[1744167665771,2.2341,103.74,103.66,47.38]
[1744167665970,9.6502,103.72,103.68,9.6528]
[1744167666676,9.72349744,103.71,103.69,0.07152596]
[1744167667171,9.6516,103.7,103.69,0.07152596]
[1744167667876,0.07269744,103.71,103.69,0.07152596]
[1744167668474,9.72389744,103.71,103.69,0.07152596]
[1744167669177,0.07269744,103.71,103.69,0.07152596]
[1744167669481,0.07269744,103.71,103.69,47.45152596]
[1744167669677,0.07269744,103.71,103.7,9.6516]
[1744167669872,0.07269744,103.71,103.69,47.45152596]
[1744167670069,0.07269744,103.71,103.69,0.07152596]
[1744167670974,0.07269744,103.71,103.65,47.38]
[1744167671180,4.75309744,103.71,103.64,2.3527]
[1744167671383,36.99256585,103.71,103.62,49.5918]
[1744167671576,36.91986841,103.71,103.62,49.5918]
[1744167671882,36.91986841,103.71,103.63,9.6581]
[1744167672280,0.07203353,103.68,103.66,0.06751656]
[1744167672475,9.655,103.67,103.66,0.06751656]
[1744167673381,0.07203353,103.68,103.66,0.06751656]
[1744167674885,0.07203353,103.68,103.66,9.72271656]
[1744167675580,0.07203353,103.68,103.66,0.06751656]
[1744167676286,9.72593353,103.68,103.66,0.06751656]
[1744167676489,0.07203353,103.68,103.66,0.06751656]
[1744167676682,0.07203353,103.68,103.67,9.6544]
[1744167676985,0.07203353,103.68,103.66,0.06751656]
[1744167677580,9.6544,103.67,103.66,0.06751656]
[1744167678388,2.40553353,103.68,103.66,0.06751656]
[1744167678585,2.40553353,103.68,103.6,4.6843]
[1744167678890,2.3335,103.68,103.6,4.6843]
[1744167679083,9.657,103.65,103.61,9.66]
[1744167679586,57.0356,103.66,103.62,9.6585]
[1744167679782,0.06096366,103.64,103.62,0.06799476]
[1744167680181,0.06096366,103.64,103.63,9.6582]
[1744167680792,47.38,103.69,103.66,9.6548]
[1744167680992,47.38,103.69,103.64,47.38]
[1744167681494,57.033,103.69,103.65,9.6555]
[1744167681791,9.6542,103.68,103.64,57.0368]
[1744167682093,0.06465244,103.68,103.66,0.0679901]
[1744167684292,0.06465244,103.68,103.67,9.6544]
[1744167684495,2.4092,103.75,103.67,89.25946841]
[1744167684794,12.0567,103.75,103.71,9.6503]
[1744167685192,2.4092,103.75,103.69,32.23946841]
[1744167685394,2.4092,103.75,103.72,9.6497]
[1744167685693,0.07044796,103.73,103.71,32.30626995]
[1744167685889,0.07044796,103.73,103.72,9.6498]
[1744167686892,2.4092,103.78,103.71,0.06680154]
[1744167687189,38.62378837,103.79,103.72,32.23946841]
[1744167687390,38.62378837,103.79,103.74,32.23946841]
[1744167687693,38.62378837,103.79,103.75,47.38]
[1744167687992,102.996769,103.8,103.75,47.38]
[1744167688193,102.996769,103.8,103.76,32.30660958]
[1744167688387,0.06664325,103.79,103.76,32.30660958]
[1744167688588,102.996769,103.8,103.78,32.23946841]
[1744167688888,102.996769,103.8,103.79,47.38]
[1744167689503,102.996769,103.8,103.79,57.0233]
[1744167689691,2.2146,103.85,103.79,47.38]
[1744167689894,11.8524,103.85,103.79,47.38]
[1744167690095,2.2146,103.85,103.79,49.6966]
[1744167690803,11.8526,103.85,103.79,49.6966]
[1744167691102,0.06303469,103.83,103.81,0.07334557]
[1744167691291,9.70303469,103.83,103.81,0.07334557]
[1744167691496,0.06303469,103.83,103.81,0.07334557]
[1744167691698,0.06303469,103.83,103.76,47.56]
[1744167691998,9.6419,103.81,103.76,47.56]
[1744167692906,9.70361428,103.8,103.77,0.06943307]
[1744167693207,0.06121428,103.8,103.76,47.56]
[1744167693406,0.06121428,103.8,103.77,0.06782452]
[1744167693699,2.3629,103.8,103.77,0.06782452]
[1744167693897,9.6455,103.77,103.73,57.1885]
[1744167694205,2.1909,103.79,103.74,9.6477]
[1744167694400,9.6447,103.78,103.74,9.6477]
[1744167695005,0.06456692,103.77,103.75,0.06344666]
[1744167695907,0.06456692,103.77,103.76,9.6461]
[1744167696100,2.1909,103.82,103.76,47.54]
[1744167696300,11.8319,103.82,103.76,47.54]
[1744167696507,49.8803,103.84,103.77,32.23946841]
[1744167696707,59.5194,103.84,103.77,2.2494]
[1744167697005,59.5194,103.84,103.79,9.6425]
[1744167697196,49.8803,103.84,103.79,9.6425]
[1744167697400,0.0610037,103.82,103.79,9.70967376]
[1744167698013,0.0610037,103.82,103.79,0.06717376]
[1744167698808,9.7016037,103.82,103.79,0.06717376]
[1744167699105,0.0610037,103.82,103.79,0.06717376]
[1744167699507,47.54,103.81,103.73,79.77946841]
[1744167699910,9.6444,103.78,103.74,9.6473]
[1744167700201,47.54,103.81,103.73,79.77946841]
[1744167700403,47.54,103.81,103.73,47.54]
[1744167700604,9.6457,103.77,103.76,0.07237433]
[1744167702401,9.71202007,103.78,103.76,0.07237433]
[1744167702806,0.06742007,103.78,103.76,0.07237433]
[1744167703007,47.60742007,103.78,103.69,2.3732]
[1744167703209,4.5104,103.77,103.68,2.4002]
[1744167704097,0.06753394,103.74,103.71,0.07359499]
[1744167704302,9.6493,103.73,103.71,0.07359499]
[1744167704507,0.06753394,103.74,103.71,0.07359499]
[1744167704711,9.6498,103.72,103.71,0.07359499]
[1744167704909,0.06753394,103.74,103.71,0.07359499]
[1744167705307,9.71563394,103.74,103.71,0.07359499]
[1744167705511,0.06753394,103.74,103.71,0.07359499]
[1744167706112,0.06753394,103.74,103.72,47.54]
[1744167706312,0.06753394,103.74,103.71,0.07359499]
[1744167711118,9.71593394,103.74,103.71,9.72419499]
[1744167711316,0.06753394,103.74,103.71,0.07359499]
[1744167711621,9.6496,103.73,103.71,0.07359499]
[1744167712021,0.06753394,103.74,103.71,0.07359499]
[1744167712318,9.6488,103.73,103.71,0.07359499]
[1744167712519,0.06753394,103.74,103.71,0.07359499]
[1744167713013,0.06753394,103.74,103.71,9.72409499]
[1744167713219,0.06753394,103.74,103.71,0.07359499]
[1744167713615,0.06753394,103.74,103.72,9.6498]
[1744167714117,0.06753394,103.74,103.71,0.07359499]
[1744167714423,0.06753394,103.74,103.72,47.56]
[1744167714617,0.06753394,103.74,103.73,9.6488]
[1744167715115,0.06753394,103.74,103.72,47.56]
[1744167716217,0.06753394,103.74,103.73,9.6488]
[1744167716415,0.06753394,103.74,103.71,0.07359499]
[1744167717013,0.06753394,103.74,103.72,79.77946841]
[1744167717216,9.6439,103.79,103.75,9.6463]
[1744167717921,9.6444,103.78,103.74,9.6476]
[1744167718424,9.7164143,103.77,103.75,0.07135993]
[1744167718623,0.0710143,103.77,103.75,0.07135993]
[1744167719019,0.0710143,103.77,103.76,9.6461]
[1744167720318,49.7363,103.82,103.78,9.6435]
[1744167720519,49.7363,103.82,103.76,32.23946841]
[1744167720719,2.1963,103.82,103.76,32.23946841]
[1744167720926,4.4762,103.83,103.8,9.6423]
[1744167721123,14.1158,103.83,103.76,32.23946841]
[1744167721314,4.4762,103.83,103.77,9.6447]
[1744167721519,0.06337378,103.81,103.78,0.07201478]
[1744167721916,0.06337378,103.81,103.8,9.6423]
[1744167722625,0.06337378,103.81,103.78,47.39201478]
[1744167723328,0.06337378,103.81,103.79,9.6428]
[1744167723527,0.06337378,103.81,103.78,47.39201478]
[1744167724430,0.06337378,103.81,103.78,79.63148319]
[1744167724831,0.06337378,103.81,103.8,9.6423]
[1744167725432,14.1668,103.86,103.82,9.6398]
[1744167726124,2.3161,103.86,103.81,47.32]
[1744167726522,0.07242229,103.85,103.82,0.06887264]
[1744167727031,9.71062229,103.85,103.82,0.06887264]
[1744167728537,0.07242229,103.85,103.82,0.06887264]
[1744167728727,2.34012229,103.85,103.82,0.06887264]
[1744167728928,11.97852229,103.85,103.82,0.06887264]
[1744167729530,2.34012229,103.85,103.82,0.06887264]
[1744167731534,11.97812229,103.85,103.82,0.06887264]
[1744167731739,9.71042229,103.85,103.82,0.06887264]
[1744167732242,0.07242229,103.85,103.82,9.70867264]
[1744167732440,0.07242229,103.85,103.82,0.06887264]
[1744167732639,9.71012229,103.85,103.82,0.06887264]
[1744167732841,0.07242229,103.85,103.82,0.06887264]
[1744167734746,0.07242229,103.85,103.82,34.57924105]
[1744167735340,0.07242229,103.85,103.82,0.06887264]
[1744167736544,9.6391,103.84,103.82,0.06887264]
[1744167737742,0.07242229,103.85,103.82,0.06887264]
[1744167738550,9.71022229,103.85,103.82,0.06887264]
[1744167739347,9.6388,103.84,103.82,0.06887264]
[1744167740645,0.07242229,103.85,103.82,0.06887264]
[1744167741051,0.07242229,103.85,103.82,9.70887264]
[1744167741244,0.07242229,103.85,103.82,0.06887264]
[1744167741757,9.6391,103.84,103.82,0.06887264]
[1744167742051,0.07242229,103.85,103.82,0.06887264]
[1744167742247,0.07242229,103.85,103.82,47.36887264]
[1744167742754,0.07242229,103.85,103.84,9.6386]
[1744167744257,0.07242229,103.85,103.83,9.6391]
[1744167744455,0.07242229,103.85,103.82,47.36887264]
[1744167744755,0.07242229,103.85,103.83,9.6388]
[1744167744955,0.07242229,103.85,103.82,79.60834105]
[1744167747357,0.07242229,103.85,103.84,9.6386]
[1744167749653,6.9335,103.9,103.87,9.6355]
[1744167750158,16.5667,103.9,103.86,9.6363]
[1744167750458,6.9335,103.9,103.85,47.28]
[1744167750859,0.07288019,103.89,103.86,9.70050239]
[1744167751060,0.07288019,103.89,103.86,0.06420239]
[1744167751356,0.07288019,103.89,103.87,9.6357]
[1744167751558,0.07288019,103.89,103.86,0.06420239]
[1744167751954,6.93838019,103.89,103.83,9.639]
[1744167752246,6.93838019,103.89,103.82,47.24]
[1744167752247,6.8655,103.89,103.82,47.24]
[1744167752751,16.5003,103.89,103.84,9.6385]
[1744167753058,0.06769833,103.88,103.85,0.0617457]
[1744167753671,0.06769833,103.88,103.8,47.24]
[1744167753867,9.6381,103.85,103.81,9.641]
[1744167754376,9.6372,103.86,103.82,9.6404]
[1744167754674,47.24,103.87,103.8,47.24]
[1744167754871,9.70812651,103.85,103.83,0.06531299]
[1744167755276,0.07002651,103.85,103.83,0.06531299]
[1744167755576,0.07002651,103.85,103.83,9.70481299]
[1744167755775,0.07002651,103.85,103.83,47.30531299]
[1744167756176,4.6345,103.89,103.83,49.68951299]
[1744167756378,49.489,103.92,103.84,32.23946841]
[1744167756874,59.1206,103.92,103.88,9.6345]
[1744167757276,0.0689974,103.91,103.89,0.07170216]
[1744167759086,4.6602,103.96,103.89,0.07170216]
[1744167759379,4.6602,103.96,103.89,2.3164]
[1744167759679,56.869,103.95,103.91,9.6317]
[1744167760177,0.06431521,103.94,103.92,0.07187697]
[1744167760575,0.06431521,103.94,103.92,9.70267697]
[1744167760782,0.06431521,103.94,103.92,0.07187697]
[1744167761780,0.06431521,103.94,103.86,79.47946841]
[1744167761981,9.6295,103.94,103.9,9.6326]
[1744167762179,47.24,103.95,103.87,2.3335]
[1744167762479,9.6317,103.92,103.87,11.9688]
[1744167762777,56.8717,103.92,103.87,2.3335]
[1744167762971,0.0636004,103.91,103.88,9.70814957]
[1744167763479,0.0636004,103.91,103.88,0.07384957]
[1744167764971,0.0636004,103.91,103.83,2.4085]
[1744167765169,4.6306,103.91,103.83,2.4085]
[1744167765372,9.6357,103.88,103.83,12.0477]
[1744167765572,47.24,103.88,103.83,2.4085]
[1744167765772,47.24,103.88,103.82,79.47946841]
[1744167766270,0.06276036,103.86,103.84,0.06487067]
[1744167766466,9.70026036,103.86,103.84,0.06487067]
[1744167766680,0.06276036,103.86,103.84,0.06487067]
[1744167766978,47.24,103.85,103.79,47.24]
[1744167767173,9.6388,103.84,103.8,9.6419]
[1744167767385,47.24,103.85,103.78,161.64670485]
[1744167767578,56.8782,103.85,103.81,9.6411]
[1744167767777,47.24,103.85,103.78,193.88617326]
[1744167767979,0.06215525,103.84,103.82,0.07147723]
[1744167768686,0.06215525,103.84,103.83,9.6396]
[1744167769182,0.06215525,103.84,103.82,9.71147723]
[1744167769878,0.06215525,103.84,103.82,0.07147723]
[1744167770284,0.06215525,103.84,103.82,9.71167723]
[1744167770677,0.06215525,103.84,103.82,0.07147723]
[1744167771085,0.06215525,103.84,103.82,9.71147723]
[1744167772878,0.06215525,103.84,103.83,9.6396]
[1744167773890,0.06215525,103.84,103.82,9.71147723]
[1744167775488,0.06215525,103.84,103.83,9.6396]
[1744167778494,49.641,103.91,103.83,47.24]
[1744167779293,81.88046841,103.91,103.81,2.2119]
[1744167779591,0.06574281,103.88,103.86,0.07131611]
[1744167779797,47.24,103.87,103.82,9.64]
[1744167779988,9.6373,103.86,103.82,9.64]
[1744167780293,49.5456,103.87,103.81,9.6407]